[Event "Titled Tuesday Blitz July 4 Early 2023"]
[White "Zilleruelo Irizarry, Diego"]
[Black "Nakhbayeva, Guliskhan"]
[WhiteFideId "3101460"]
[BlackFideId "13704788"]
[WhiteElo "2381"]
[BlackElo "2187"]
[Result "0-1"]
[Round "4"]
[TimeControl "180+2"]
[Date "2023.07.04"]
[WhiteClock "0:00:32"]
[BlackClock "0:00:43"]
[Board "218"]

1. e4 {[%clk 0:03:00]}  e6 {[%clk 0:03:00]} 2. d4 {[%clk 0:03:00]}  d5 {[%clk 0:03:01]} 3. Nd2 {[%clk 0:03:01]}  dxe4 {[%clk 0:03:00]} 4. Nxe4 {[%clk 0:03:02]}  Nd7 {[%clk 0:03:00]} 5. Nf3 {[%clk 0:03:01]}  Ngf6 {[%clk 0:03:00]} 6. Ng3 {[%clk 0:02:59]}  Be7 {[%clk 0:03:00]} 7. Bd3 {[%clk 0:02:59]}  O-O {[%clk 0:03:01]} 8. O-O {[%clk 0:02:59]}  b6 {[%clk 0:03:01]} 9. Qe1 {[%clk 0:02:59]}  Bb7 {[%clk 0:03:02]} 10. Qe2 {[%clk 0:03:00]}  c5 {[%clk 0:02:58]} 11. c3 {[%clk 0:02:59]}  Rc8 {[%clk 0:02:52]} 12. Rd1 {[%clk 0:02:58]}  Qc7 {[%clk 0:02:52]} 13. Be3 {[%clk 0:02:41]}  Rfd8 {[%clk 0:02:50]} 14. Ba6 {[%clk 0:02:39]}  h6 {[%clk 0:02:46]} 15. Bxb7 {[%clk 0:02:39]}  Qxb7 {[%clk 0:02:45]} 16. Rd2 {[%clk 0:02:21]}  Nd5 {[%clk 0:02:34]} 17. Rad1 {[%clk 0:02:19]}  Nxe3 {[%clk 0:02:33]} 18. Qxe3 {[%clk 0:02:18]}  Qc7 {[%clk 0:02:13]} 19. d5 {[%clk 0:02:14]}  Nf8 {[%clk 0:02:06]} 20. dxe6 {[%clk 0:01:50]}  Nxe6 {[%clk 0:02:07]} 21. Nf5 {[%clk 0:01:50]}  Bf8 {[%clk 0:01:55]} 22. Ne5 {[%clk 0:01:43]}  Rxd2 {[%clk 0:01:38]} 23. Rxd2 {[%clk 0:01:42]}  Rd8 {[%clk 0:01:22]} 24. Rxd8 {[%clk 0:01:32]}  Qxd8 {[%clk 0:01:20]} 25. g3 {[%clk 0:01:30]}  Qd1+ {[%clk 0:01:13]} 26. Kg2 {[%clk 0:01:30]}  Qd5+ {[%clk 0:01:14]} 27. Kg1 {[%clk 0:01:30]}  Qxa2 {[%clk 0:01:09]} 28. Qf3 {[%clk 0:00:48]}  Ng5 {[%clk 0:00:57]} 29. Qa8 {[%clk 0:00:42]}  Qb1+ {[%clk 0:00:52]} 30. Kg2 {[%clk 0:00:39]}  Qxf5 {[%clk 0:00:51]} 31. f4 {[%clk 0:00:32]}  Qe4+ {[%clk 0:00:43]} 0-1


[Site "https://www.chess.com"]

[Event "Titled Tuesday Blitz July 4 Early 2023"]
[White "Hartikainen, Jarmo"]
[Black "Vifleemskaia, Svetlana"]
[WhiteFideId "503134"]
[BlackFideId "4129490"]
[WhiteElo "2149"]
[BlackElo "2323"]
[Result "1/2-1/2"]
[Round "4"]
[TimeControl "180+2"]
[Date "2023.07.04"]
[WhiteClock "0:00:40"]
[BlackClock "0:00:32"]
[Board "222"]

1. e4 {[%clk 0:03:00]}  e5 {[%clk 0:02:59]} 2. Nf3 {[%clk 0:03:00]}  Nc6 {[%clk 0:02:59]} 3. Bc4 {[%clk 0:03:00]}  Nf6 {[%clk 0:02:59]} 4. Ng5 {[%clk 0:03:00]}  d5 {[%clk 0:02:59]} 5. exd5 {[%clk 0:03:00]}  Na5 {[%clk 0:02:59]} 6. Bb5+ {[%clk 0:03:00]}  c6 {[%clk 0:03:00]} 7. dxc6 {[%clk 0:03:00]}  bxc6 {[%clk 0:03:01]} 8. Bd3 {[%clk 0:03:01]}  Ng4 {[%clk 0:02:58]} 9. Nf3 {[%clk 0:02:54]}  Bc5 {[%clk 0:02:40]} 10. O-O {[%clk 0:02:52]}  Qf6 {[%clk 0:02:26]} 11. b4 {[%clk 0:02:13]}  Bxb4 {[%clk 0:02:23]} 12. Bb2 {[%clk 0:02:14]}  Bd6 {[%clk 0:02:23]} 13. h3 {[%clk 0:02:12]}  h5 {[%clk 0:02:20]} 14. Re1 {[%clk 0:02:10]}  O-O {[%clk 0:02:19]} 15. Nc3 {[%clk 0:02:07]}  Bf5 {[%clk 0:02:13]} 16. Ne4 {[%clk 0:02:05]}  Bxe4 {[%clk 0:02:12]} 17. Bxe4 {[%clk 0:02:06]}  Nh6 {[%clk 0:01:54]} 18. Nxe5 {[%clk 0:01:52]}  Rfe8 {[%clk 0:01:43]} 19. Qxh5 {[%clk 0:01:48]}  Bxe5 {[%clk 0:01:32]} 20. Bxe5 {[%clk 0:01:43]}  Rxe5 {[%clk 0:01:31]} 21. Qxe5 {[%clk 0:01:38]}  Qxe5 {[%clk 0:01:28]} 22. Bh7+ {[%clk 0:01:38]}  Kxh7 {[%clk 0:01:28]} 23. Rxe5 {[%clk 0:01:38]}  Nc4 {[%clk 0:01:28]} 24. Rc5 {[%clk 0:01:28]}  Nxd2 {[%clk 0:01:28]} 25. Rxc6 {[%clk 0:01:28]}  Ne4 {[%clk 0:01:26]} 26. Rb1 {[%clk 0:01:22]}  Rd8 {[%clk 0:01:17]} 27. Rc7 {[%clk 0:01:09]}  a5 {[%clk 0:01:15]} 28. f3 {[%clk 0:01:02]}  Nd2 {[%clk 0:01:13]} 29. Rb5 {[%clk 0:01:00]}  a4 {[%clk 0:01:12]} 30. Ra5 {[%clk 0:00:59]}  Rd4 {[%clk 0:01:09]} 31. Rca7 {[%clk 0:00:57]}  Rc4 {[%clk 0:01:05]} 32. Rxa4 {[%clk 0:00:53]}  Rxc2 {[%clk 0:01:05]} 33. Rh4 {[%clk 0:00:42]}  Kg6 {[%clk 0:01:03]} 34. a4 {[%clk 0:00:41]}  Nf5 {[%clk 0:00:34]} 35. Rg4+ {[%clk 0:00:40]}  Kf6 {[%clk 0:00:32]} 36. Ra6+ {[%clk 0:00:40]}  Ke5 {[%clk 0:00:31]} 37. Ra5+ {[%clk 0:00:38]}  Ke6 {[%clk 0:00:31]} 38. Ra6+ {[%clk 0:00:39]}  Ke5 {[%clk 0:00:31]} 39. Ra5+ {[%clk 0:00:39]}  Ke6 {[%clk 0:00:31]} 40. Ra6+ {[%clk 0:00:40]}  Ke5 {[%clk 0:00:32]} 1/2-1/2


[Site "https://www.chess.com"]

[Event "Titled Tuesday Blitz July 4 Early 2023"]
[White "Vaglio Munoz, Jaime"]
[Black "Allam, Yara"]
[WhiteFideId "6500145"]
[BlackFideId "10615709"]
[WhiteElo "2303"]
[BlackElo "2065"]
[Result "1-0"]
[Round "4"]
[TimeControl "180+2"]
[Date "2023.07.04"]
[WhiteClock "0:00:51"]
[BlackClock "0:00:01"]
[Board "228"]

1. Nf3 {[%clk 0:03:00]}  d5 {[%clk 0:03:00]} 2. c4 {[%clk 0:03:00]}  c6 {[%clk 0:03:00]} 3. b3 {[%clk 0:02:59]}  Nf6 {[%clk 0:03:00]} 4. Bb2 {[%clk 0:02:59]}  e6 {[%clk 0:03:00]} 5. g3 {[%clk 0:02:59]}  Be7 {[%clk 0:02:59]} 6. Bg2 {[%clk 0:02:59]}  O-O {[%clk 0:02:59]} 7. O-O {[%clk 0:02:59]}  Nbd7 {[%clk 0:02:57]} 8. d3 {[%clk 0:02:59]}  Re8 {[%clk 0:02:57]} 9. Re1 {[%clk 0:02:58]}  Qc7 {[%clk 0:02:55]} 10. e4 {[%clk 0:02:57]}  dxe4 {[%clk 0:02:42]} 11. dxe4 {[%clk 0:02:58]}  Nc5 {[%clk 0:02:42]} 12. e5 {[%clk 0:02:57]}  Rd8 {[%clk 0:02:39]} 13. Nd4 {[%clk 0:02:46]}  Ne8 {[%clk 0:02:31]} 14. Qe2 {[%clk 0:02:44]}  Bd7 {[%clk 0:02:21]} 15. Qc2 {[%clk 0:02:36]}  a5 {[%clk 0:02:07]} 16. Nc3 {[%clk 0:02:30]}  Rdb8 {[%clk 0:01:53]} 17. Rad1 {[%clk 0:02:29]}  Ra6 {[%clk 0:01:47]} 18. a3 {[%clk 0:02:21]}  Raa8 {[%clk 0:01:41]} 19. h4 {[%clk 0:02:18]}  Qc8 {[%clk 0:01:34]} 20. h5 {[%clk 0:02:17]}  h6 {[%clk 0:01:34]} 21. f4 {[%clk 0:02:14]}  Nc7 {[%clk 0:01:27]} 22. Kh2 {[%clk 0:02:13]}  Qe8 {[%clk 0:01:19]} 23. b4 {[%clk 0:01:48]}  N5a6 {[%clk 0:01:01]} 24. bxa5 {[%clk 0:01:33]}  Nc5 {[%clk 0:00:59]} 25. Ne4 {[%clk 0:01:23]}  Nxe4 {[%clk 0:00:46]} 26. Qxe4 {[%clk 0:01:22]}  Rxa5 {[%clk 0:00:44]} 27. Bf1 {[%clk 0:01:21]}  f5 {[%clk 0:00:36]} 28. Qf3 {[%clk 0:01:14]}  Qf7 {[%clk 0:00:29]} 29. Nxf5 {[%clk 0:01:02]}  Qxf5 {[%clk 0:00:19]} 30. Rxd7 {[%clk 0:01:01]}  Bd8 {[%clk 0:00:15]} 31. Red1 {[%clk 0:00:57]}  Raa8 {[%clk 0:00:14]} 32. g4 {[%clk 0:00:56]}  Qc2+ {[%clk 0:00:14]} 33. R1d2 {[%clk 0:00:56]}  Qb1 {[%clk 0:00:14]} 34. f5 {[%clk 0:00:53]}  Na6 {[%clk 0:00:01]} 35. fxe6 {[%clk 0:00:51]} 1-0


[Site "https://www.chess.com"]

[Event "Titled Tuesday Blitz July 4 Early 2023"]
[White "Sokolov, Andrei"]
[Black "Semenova, Alina"]
[WhiteFideId "11600306"]
[BlackFideId "24113875"]
[WhiteElo "2301"]
[BlackElo "2059"]
[Result "1-0"]
[Round "4"]
[TimeControl "180+2"]
[Date "2023.07.04"]
[WhiteClock "0:00:09"]
[BlackClock "0:00:04"]
[Board "229"]

1. d4 {[%clk 0:03:00]}  Nf6 {[%clk 0:02:59]} 2. c4 {[%clk 0:03:01]}  d6 {[%clk 0:02:59]} 3. Nc3 {[%clk 0:02:59]}  g6 {[%clk 0:03:00]} 4. e4 {[%clk 0:02:57]}  Bg7 {[%clk 0:03:01]} 5. h3 {[%clk 0:02:57]}  O-O {[%clk 0:03:01]} 6. Be3 {[%clk 0:02:57]}  e5 {[%clk 0:03:01]} 7. d5 {[%clk 0:02:57]}  Nh5 {[%clk 0:03:00]} 8. g4 {[%clk 0:02:21]}  Nf4 {[%clk 0:02:59]} 9. Qd2 {[%clk 0:02:21]}  g5 {[%clk 0:02:56]} 10. Bd3 {[%clk 0:01:56]}  a6 {[%clk 0:02:45]} 11. O-O-O {[%clk 0:01:55]}  Nd7 {[%clk 0:02:45]} 12. h4 {[%clk 0:01:49]}  h6 {[%clk 0:02:42]} 13. hxg5 {[%clk 0:01:37]}  hxg5 {[%clk 0:02:43]} 14. f3 {[%clk 0:01:31]}  Nc5 {[%clk 0:02:42]} 15. Bc2 {[%clk 0:01:14]}  f6 {[%clk 0:02:38]} 16. Qh2 {[%clk 0:01:12]}  Kf7 {[%clk 0:02:33]} 17. Bxf4 {[%clk 0:00:56]}  exf4 {[%clk 0:02:25]} 18. Qh5+ {[%clk 0:00:48]}  Ke7 {[%clk 0:02:21]} 19. Qg6 {[%clk 0:00:43]}  Rg8 {[%clk 0:02:16]} 20. Rh7 {[%clk 0:00:42]}  Qf8 {[%clk 0:02:16]} 21. Nge2 {[%clk 0:00:24]}  Qf7 {[%clk 0:01:48]} 22. Qxf7+ {[%clk 0:00:23]}  Kxf7 {[%clk 0:01:49]} 23. Nd4 {[%clk 0:00:23]}  Bd7 {[%clk 0:01:41]} 24. Rdh1 {[%clk 0:00:22]}  Rh8 {[%clk 0:01:40]} 25. Nce2 {[%clk 0:00:14]}  a5 {[%clk 0:01:37]} 26. Nf5 {[%clk 0:00:13]}  Bxf5 {[%clk 0:01:35]} 27. gxf5 {[%clk 0:00:13]}  Rxh7 {[%clk 0:01:30]} 28. Rxh7 {[%clk 0:00:14]}  Rh8 {[%clk 0:01:31]} 29. Rxh8 {[%clk 0:00:13]}  Bxh8 {[%clk 0:01:32]} 30. Nd4 {[%clk 0:00:14]}  Bg7 {[%clk 0:01:30]} 31. Ne6 {[%clk 0:00:13]}  Nxe6 {[%clk 0:01:30]} 32. fxe6+ {[%clk 0:00:13]}  Ke7 {[%clk 0:01:29]} 33. Kd2 {[%clk 0:00:13]}  f5 {[%clk 0:01:24]} 34. exf5 {[%clk 0:00:12]}  Bxb2 {[%clk 0:01:23]} 35. Ke2 {[%clk 0:00:12]}  Bd4 {[%clk 0:01:21]} 36. Kf1 {[%clk 0:00:12]}  Kf6 {[%clk 0:01:16]} 37. Kg2 {[%clk 0:00:12]}  Bc5 {[%clk 0:01:06]} 38. Kh3 {[%clk 0:00:12]}  Bf2 {[%clk 0:01:05]} 39. Kg4 {[%clk 0:00:12]}  Bd4 {[%clk 0:00:56]} 40. Kh5 {[%clk 0:00:11]}  c6 {[%clk 0:00:53]} 41. Be4 {[%clk 0:00:11]}  c5 {[%clk 0:00:34]} 42. e7 {[%clk 0:00:09]}  Kxe7 {[%clk 0:00:33]} 43. Kxg5 {[%clk 0:00:09]}  Be5 {[%clk 0:00:33]} 44. Kg6 {[%clk 0:00:10]}  Bf6 {[%clk 0:00:26]} 45. Bc2 {[%clk 0:00:07]}  Be5 {[%clk 0:00:24]} 46. Kg5 {[%clk 0:00:07]}  b6 {[%clk 0:00:21]} 47. Ba4 {[%clk 0:00:07]}  Kf7 {[%clk 0:00:20]} 48. Bc6 {[%clk 0:00:07]}  Kg7 {[%clk 0:00:19]} 49. Bd7 {[%clk 0:00:07]}  Kf7 {[%clk 0:00:19]} 50. Be6+ {[%clk 0:00:07]}  Ke7 {[%clk 0:00:16]} 51. Kg4 {[%clk 0:00:06]}  Kf6 {[%clk 0:00:16]} 52. Bd7 {[%clk 0:00:05]}  Ke7 {[%clk 0:00:12]} 53. Bc8 {[%clk 0:00:04]}  Bb2 {[%clk 0:00:09]} 54. Kxf4 {[%clk 0:00:03]}  a4 {[%clk 0:00:09]} 55. Ba6 {[%clk 0:00:02]}  a3 {[%clk 0:00:09]} 56. Bb5 {[%clk 0:00:01]}  Kf6 {[%clk 0:00:09]} 57. Kg4 {[%clk 0:00:02]}  Be5 {[%clk 0:00:09]} 58. f4 {[%clk 0:00:02]}  Bd4 {[%clk 0:00:10]} 59. Bd7 {[%clk 0:00:02]}  Bc3 {[%clk 0:00:11]} 60. Be6 {[%clk 0:00:02]}  Bd2 {[%clk 0:00:12]} 61. Kf3 {[%clk 0:00:02]}  Bc1 {[%clk 0:00:12]} 62. Ke4 {[%clk 0:00:03]}  Bd2 {[%clk 0:00:10]} 63. Bd7 {[%clk 0:00:03]}  Bc1 {[%clk 0:00:10]} 64. Bc6 {[%clk 0:00:03]}  Bd2 {[%clk 0:00:10]} 65. Bb5 {[%clk 0:00:04]}  Bc1 {[%clk 0:00:10]} 66. Bd7 {[%clk 0:00:04]}  Bd2 {[%clk 0:00:10]} 67. Be6 {[%clk 0:00:05]}  Bc1 {[%clk 0:00:10]} 68. Kd3 {[%clk 0:00:05]}  Bxf4 {[%clk 0:00:10]} 69. Kc3 {[%clk 0:00:05]}  Be5+ {[%clk 0:00:06]} 70. Kb3 {[%clk 0:00:06]}  Bb2 {[%clk 0:00:06]} 71. Ka4 {[%clk 0:00:06]}  Ke5 {[%clk 0:00:05]} 72. Kb5 {[%clk 0:00:07]}  Bc1 {[%clk 0:00:03]} 73. Kxb6 {[%clk 0:00:07]}  Kd4 {[%clk 0:00:03]} 74. Kc6 {[%clk 0:00:07]}  Bf4 {[%clk 0:00:02]} 75. f6 {[%clk 0:00:07]}  Bg5 {[%clk 0:00:02]} 76. f7 {[%clk 0:00:07]}  Be7 {[%clk 0:00:01]} 77. Kd7 {[%clk 0:00:08]}  Bf8 {[%clk 0:00:02]} 78. Ke8 {[%clk 0:00:08]}  Bg7 {[%clk 0:00:01]} 79. f8=Q {[%clk 0:00:07]}  Bxf8 {[%clk 0:00:02]} 80. Kxf8 {[%clk 0:00:07]}  Kxc4 {[%clk 0:00:03]} 81. Ke7 {[%clk 0:00:07]}  Kc3 {[%clk 0:00:01]} 82. Kxd6 {[%clk 0:00:08]}  c4 {[%clk 0:00:01]} 83. Kc5 {[%clk 0:00:07]}  Kb2 {[%clk 0:00:01]} 84. Kxc4 {[%clk 0:00:07]}  Kxa2 {[%clk 0:00:02]} 85. Kb4 {[%clk 0:00:07]}  Kb2 {[%clk 0:00:02]} 86. d6 {[%clk 0:00:07]}  a2 {[%clk 0:00:03]} 87. Bxa2 {[%clk 0:00:08]}  Kxa2 {[%clk 0:00:04]} 88. d7 {[%clk 0:00:08]}  Kb2 {[%clk 0:00:04]} 89. d8=Q {[%clk 0:00:09]} 1-0


[Site "https://www.chess.com"]

[Event "Titled Tuesday Blitz July 4 Early 2023"]
[White "Blackwhite017"]
[Black "Mendez, Ruddy Antonio"]
[BlackFideId "6403387"]
[WhiteElo "2048"]
[BlackElo "2285"]
[Result "1-0"]
[Round "4"]
[TimeControl "180+2"]
[Date "2023.07.04"]
[WhiteClock "0:00:17"]
[BlackClock "0:01:17"]
[Board "230"]

1. e4 {[%clk 0:03:00]}  d6 {[%clk 0:02:46]} 2. d4 {[%clk 0:02:59]}  e5 {[%clk 0:02:46]} 3. dxe5 {[%clk 0:02:58]}  dxe5 {[%clk 0:02:46]} 4. Qxd8+ {[%clk 0:02:58]}  Kxd8 {[%clk 0:02:47]} 5. Nc3 {[%clk 0:02:51]}  c6 {[%clk 0:02:46]} 6. Nf3 {[%clk 0:02:51]}  f6 {[%clk 0:02:45]} 7. Be3 {[%clk 0:02:50]}  Nd7 {[%clk 0:02:44]} 8. O-O-O {[%clk 0:02:51]}  Kc7 {[%clk 0:02:44]} 9. Nd2 {[%clk 0:02:51]}  Bc5 {[%clk 0:02:44]} 10. Bxc5 {[%clk 0:02:49]}  Nxc5 {[%clk 0:02:44]} 11. f3 {[%clk 0:02:49]}  Ne7 {[%clk 0:02:41]} 12. Bc4 {[%clk 0:02:39]}  Ne6 {[%clk 0:02:39]} 13. Ne2 {[%clk 0:02:25]}  Bd7 {[%clk 0:02:37]} 14. Nf1 {[%clk 0:02:18]}  Rad8 {[%clk 0:02:37]} 15. Ne3 {[%clk 0:02:18]}  Ng6 {[%clk 0:02:28]} 16. g3 {[%clk 0:02:04]}  Bc8 {[%clk 0:02:28]} 17. Nf5 {[%clk 0:01:57]}  Rxd1+ {[%clk 0:01:57]} 18. Rxd1 {[%clk 0:01:56]}  Ng5 {[%clk 0:01:49]} 19. Ng1 {[%clk 0:01:30]}  Bxf5 {[%clk 0:01:49]} 20. exf5 {[%clk 0:01:31]}  Ne7 {[%clk 0:01:47]} 21. h4 {[%clk 0:01:30]}  Nxf5 {[%clk 0:01:43]} 22. hxg5 {[%clk 0:01:29]}  Nxg3 {[%clk 0:01:44]} 23. gxf6 {[%clk 0:01:28]}  gxf6 {[%clk 0:01:44]} 24. Ne2 {[%clk 0:01:24]}  Nh5 {[%clk 0:01:44]} 25. Rh1 {[%clk 0:01:23]}  Ng7 {[%clk 0:01:43]} 26. Ng3 {[%clk 0:01:21]}  h5 {[%clk 0:01:42]} 27. Bf7 {[%clk 0:01:09]}  h4 {[%clk 0:01:42]} 28. Ne4 {[%clk 0:01:07]}  Rh6 {[%clk 0:01:41]} 29. Kd2 {[%clk 0:00:55]}  Nf5 {[%clk 0:01:41]} 30. Be6 {[%clk 0:00:52]}  Nd4 {[%clk 0:01:41]} 31. Bb3 {[%clk 0:00:42]}  Nxf3+ {[%clk 0:01:41]} 32. Ke3 {[%clk 0:00:42]}  Nd4 {[%clk 0:01:41]} 33. c3 {[%clk 0:00:42]}  Nf5+ {[%clk 0:01:37]} 34. Kf3 {[%clk 0:00:42]}  Ne7 {[%clk 0:01:37]} 35. Nf2 {[%clk 0:00:37]}  f5 {[%clk 0:01:36]} 36. Nh3 {[%clk 0:00:29]}  Nd5 {[%clk 0:01:35]} 37. Bxd5 {[%clk 0:00:29]}  cxd5 {[%clk 0:01:36]} 38. Re1 {[%clk 0:00:28]}  Kd6 {[%clk 0:01:36]} 39. Ng5 {[%clk 0:00:28]}  Rh5 {[%clk 0:01:34]} 40. Nf7+ {[%clk 0:00:28]}  Kc5 {[%clk 0:01:33]} 41. Nxe5 {[%clk 0:00:24]}  h3 {[%clk 0:01:31]} 42. Nd3+ {[%clk 0:00:24]}  Kd6 {[%clk 0:01:30]} 43. Nf4 {[%clk 0:00:18]}  Rh6 {[%clk 0:01:28]} 44. Rh1 {[%clk 0:00:18]}  Ke5 {[%clk 0:01:27]} 45. Rxh3 {[%clk 0:00:16]}  Rb6 {[%clk 0:01:25]} 46. Rh2 {[%clk 0:00:15]}  a5 {[%clk 0:01:23]} 47. Re2+ {[%clk 0:00:15]}  Kf6 {[%clk 0:01:23]} 48. Nxd5+ {[%clk 0:00:16]}  Kg5 {[%clk 0:01:22]} 49. Nxb6 {[%clk 0:00:17]}  Kg6 {[%clk 0:01:17]} 50. Nc4 {[%clk 0:00:17]} 1-0


[Site "https://www.chess.com"]

[Event "Titled Tuesday Blitz July 4 Early 2023"]
[White "Politov, Pavel Y."]
[Black "Kuchava, Ana"]
[WhiteFideId "24110515"]
[BlackFideId "13605348"]
[WhiteElo "2046"]
[BlackElo "2281"]
[Result "0-1"]
[Round "4"]
[TimeControl "180+2"]
[Date "2023.07.04"]
[WhiteClock "0:00:05"]
[BlackClock "0:00:07"]
[Board "231"]

1. e4 {[%clk 0:03:00]}  c5 {[%clk 0:02:58]} 2. Nf3 {[%clk 0:02:53]}  d6 {[%clk 0:02:57]} 3. d4 {[%clk 0:02:51]}  cxd4 {[%clk 0:02:56]} 4. Nxd4 {[%clk 0:02:52]}  Nf6 {[%clk 0:02:57]} 5. Nc3 {[%clk 0:02:52]}  Nc6 {[%clk 0:02:56]} 6. Bg5 {[%clk 0:02:50]}  e6 {[%clk 0:02:56]} 7. Qd3 {[%clk 0:02:44]}  Qb6 {[%clk 0:02:54]} 8. Nb3 {[%clk 0:02:22]}  a6 {[%clk 0:02:19]} 9. Be3 {[%clk 0:02:10]}  Qc7 {[%clk 0:02:17]} 10. f3 {[%clk 0:01:58]}  Be7 {[%clk 0:02:12]} 11. O-O-O {[%clk 0:01:55]}  b5 {[%clk 0:01:54]} 12. g4 {[%clk 0:01:47]}  b4 {[%clk 0:01:15]} 13. Ne2 {[%clk 0:01:43]}  Ne5 {[%clk 0:01:11]} 14. Qd4 {[%clk 0:01:13]}  Nxf3 {[%clk 0:01:10]} 15. Qxb4 {[%clk 0:01:07]}  d5 {[%clk 0:01:05]} 16. Qa5 {[%clk 0:00:47]}  Qxa5 {[%clk 0:00:59]} 17. Nxa5 {[%clk 0:00:48]}  Nxg4 {[%clk 0:00:51]} 18. Bd4 {[%clk 0:00:37]}  Nxd4 {[%clk 0:00:46]} 19. Rxd4 {[%clk 0:00:33]}  Nf2 {[%clk 0:00:37]} 20. Rg1 {[%clk 0:00:30]}  Bf6 {[%clk 0:00:35]} 21. exd5 {[%clk 0:00:20]}  Bxd4 {[%clk 0:00:30]} 22. Nxd4 {[%clk 0:00:20]}  exd5 {[%clk 0:00:29]} 23. Rg2 {[%clk 0:00:20]}  Ne4 {[%clk 0:00:27]} 24. Rxg7 {[%clk 0:00:20]}  Be6 {[%clk 0:00:26]} 25. Nxe6 {[%clk 0:00:19]}  fxe6 {[%clk 0:00:27]} 26. Bh3 {[%clk 0:00:19]}  Rf8 {[%clk 0:00:25]} 27. b3 {[%clk 0:00:15]}  Rf6 {[%clk 0:00:21]} 28. Rg8+ {[%clk 0:00:15]}  Rf8 {[%clk 0:00:20]} 29. Rxf8+ {[%clk 0:00:15]}  Kxf8 {[%clk 0:00:21]} 30. Bxe6 {[%clk 0:00:15]}  d4 {[%clk 0:00:20]} 31. Bd5 {[%clk 0:00:15]}  Re8 {[%clk 0:00:19]} 32. Nc6 {[%clk 0:00:13]}  Nc3 {[%clk 0:00:18]} 33. Bc4 {[%clk 0:00:12]}  Nxa2+ {[%clk 0:00:11]} 34. Kb2 {[%clk 0:00:12]}  Nc3 {[%clk 0:00:11]} 35. Nxd4 {[%clk 0:00:12]}  Nb5 {[%clk 0:00:07]} 36. Nxb5 {[%clk 0:00:11]}  axb5 {[%clk 0:00:08]} 37. Bxb5 {[%clk 0:00:12]}  Re3 {[%clk 0:00:07]} 38. Bc6 {[%clk 0:00:10]}  Ke7 {[%clk 0:00:07]} 39. Bd5 {[%clk 0:00:10]}  Kd6 {[%clk 0:00:07]} 40. Bc4 {[%clk 0:00:10]}  Rh3 {[%clk 0:00:07]} 41. b4 {[%clk 0:00:08]}  Rxh2 {[%clk 0:00:07]} 42. Kb3 {[%clk 0:00:08]}  Rh3+ {[%clk 0:00:07]} 43. c3 {[%clk 0:00:08]}  Kc7 {[%clk 0:00:07]} 44. Bd5 {[%clk 0:00:08]}  h5 {[%clk 0:00:07]} 45. Kc4 {[%clk 0:00:07]}  h4 {[%clk 0:00:07]} 46. Kb5 {[%clk 0:00:07]}  Rxc3 {[%clk 0:00:06]} 47. Ka4 {[%clk 0:00:06]}  Kb6 {[%clk 0:00:05]} 48. b5 {[%clk 0:00:06]}  h3 {[%clk 0:00:05]} 49. Kb4 {[%clk 0:00:06]}  Rg3 {[%clk 0:00:05]} 50. Kc4 {[%clk 0:00:06]}  h2 {[%clk 0:00:06]} 51. Kb4 {[%clk 0:00:06]}  Rg1 {[%clk 0:00:06]} 52. Bc4 {[%clk 0:00:05]}  h1=Q {[%clk 0:00:07]} 53. Bd3 {[%clk 0:00:05]}  Rc1 {[%clk 0:00:07]} 0-1


[Site "https://www.chess.com"]

[Event "Titled Tuesday Blitz July 4 Early 2023"]
[White "Winkels, Marcel"]
[Black "Biriukov, Ilja"]
[WhiteFideId "1003887"]
[BlackFideId "4113373"]
[WhiteElo "2046"]
[BlackElo "2281"]
[Result "1-0"]
[Round "4"]
[TimeControl "180+2"]
[Date "2023.07.04"]
[WhiteClock "0:01:23"]
[BlackClock "0:00:12"]
[Board "232"]

1. e4 {[%clk 0:03:00]}  c5 {[%clk 0:02:59]} 2. Nf3 {[%clk 0:03:00]}  d6 {[%clk 0:02:59]} 3. d4 {[%clk 0:03:00]}  cxd4 {[%clk 0:03:00]} 4. Nxd4 {[%clk 0:03:00]}  Nf6 {[%clk 0:03:00]} 5. Nc3 {[%clk 0:03:01]}  a6 {[%clk 0:03:01]} 6. h3 {[%clk 0:03:00]}  e5 {[%clk 0:03:00]} 7. Nf3 {[%clk 0:02:59]}  h6 {[%clk 0:02:59]} 8. g4 {[%clk 0:02:59]}  Be6 {[%clk 0:02:58]} 9. Rg1 {[%clk 0:02:58]}  Be7 {[%clk 0:02:55]} 10. g5 {[%clk 0:02:57]}  hxg5 {[%clk 0:02:53]} 11. Nxg5 {[%clk 0:02:57]}  Qa5 {[%clk 0:01:55]} 12. Be3 {[%clk 0:02:41]}  Nbd7 {[%clk 0:01:49]} 13. Qd2 {[%clk 0:02:38]}  Nh5 {[%clk 0:01:40]} 14. Nxe6 {[%clk 0:02:23]}  fxe6 {[%clk 0:01:39]} 15. Bc4 {[%clk 0:02:20]}  Nf8 {[%clk 0:01:36]} 16. O-O-O {[%clk 0:02:16]}  b5 {[%clk 0:01:18]} 17. Bb3 {[%clk 0:02:15]}  Qc7 {[%clk 0:01:12]} 18. Kb1 {[%clk 0:02:11]}  O-O-O {[%clk 0:01:01]} 19. a4 {[%clk 0:02:04]}  b4 {[%clk 0:00:53]} 20. Na2 {[%clk 0:02:02]}  a5 {[%clk 0:00:54]} 21. c3 {[%clk 0:01:58]}  bxc3 {[%clk 0:00:49]} 22. Nxc3 {[%clk 0:01:56]}  d5 {[%clk 0:00:40]} 23. Nb5 {[%clk 0:01:54]}  Qb7 {[%clk 0:00:38]} 24. Rc1+ {[%clk 0:01:42]}  Kb8 {[%clk 0:00:37]} 25. Qxa5 {[%clk 0:01:37]}  Rc8 {[%clk 0:00:22]} 26. Ba7+ {[%clk 0:01:28]}  Ka8 {[%clk 0:00:21]} 27. Rxc8+ {[%clk 0:01:26]}  Qxc8 {[%clk 0:00:17]} 28. Bb6+ {[%clk 0:01:24]}  Kb7 {[%clk 0:00:17]} 29. Qa7+ {[%clk 0:01:23]}  Kc6 {[%clk 0:00:12]} 30. Rc1+ {[%clk 0:01:23]} 1-0


[Site "https://www.chess.com"]